bitfinex-derivatives/quotes_BNBF0:USTF0_20251220
["timestamp","ask_amount","ask_price","bid_price","bid_amount"]
[1766189901311,1.16624881,856.71,855.7,0.8746234]
[1766189902309,1.16624881,856.7,855.7,0.8746234]
[1766189903307,1.16624881,856.7,855.71,0.8746234]
[1766189904413,1.16624881,856.69,855.71,0.8746234]
[1766189905308,1.16624881,856.69,855.72,0.8746234]
[1766189907308,1.16624881,856.68,855.72,0.8746234]
[1766189909312,1.16624881,856.68,855.73,0.8746234]
[1766189911511,1.16624881,856.67,855.73,0.8746234]
[1766189912411,1.16624881,856.67,855.74,0.8746234]
[1766189913315,1.16624881,856.66,855.74,0.8746234]
[1766189914416,1.16624881,856.66,855.75,0.8746234]
[1766189915517,1.16624881,856.65,855.75,0.8746234]
[1766189915713,1.16624881,856.69,855.79,0.8746234]
[1766189935140,1.16624881,856.7,855.79,0.8746234]
[1766189939341,1.16624881,856.63,855.72,0.8746234]
[1766189939643,1.16624881,856.62,855.71,0.8746234]
[1766189942348,1.16624881,856.62,855.7,0.8746234]
[1766189943343,1.16624881,856.63,855.7,0.8746234]
[1766189948249,1.16624881,856.63,855.69,0.8746234]
[1766189950152,1.16624881,856.64,855.69,0.8746234]
[1766189957562,0.20317549,856.72,855.84,0.8746234]
[1766189958663,0.20317549,856.72,855.85,0.8746234]
[1766189959266,0.20317549,856.72,855.89,0.8746234]
[1766189961363,0.20317549,856.72,855.88,0.8746234]
[1766189962364,0.20317549,856.72,855.87,0.8746234]
[1766189963270,0.20317549,856.72,855.89,0.8746234]
[1766189964272,0.20317549,856.72,855.88,0.8746234]
[1766189966469,0.20317549,856.72,855.87,0.8746234]
[1766189969174,0.20317549,856.72,855.86,0.8746234]
[1766189971573,0.20317549,856.72,855.85,0.8746234]
[1766189975073,0.20317549,856.72,855.84,0.8746234]
[1766189975575,0.20317549,856.72,855.83,0.8746234]
[1766189980279,0.20317549,856.72,855.67,1.16633017]
[1766189980479,0.20317549,856.72,855.83,0.87375032]
[1766189981374,0.20317549,856.72,855.82,0.87375032]
[1766189981875,0.20317549,856.72,855.83,0.87375032]
[1766189982181,0.20317549,856.72,855.82,0.87375032]
[1766189986077,0.20317549,856.72,855.81,0.87375032]
[1766189986283,0.20317549,856.72,855.76,0.87375032]
[1766189986684,1.16624881,856.92,855.76,0.87375032]
[1766189986882,0.20320041,856.49,855.76,0.87375032]
[1766189987085,1.16624881,856.92,855.76,0.87375032]
[1766189987285,0.20320041,856.43,855.76,0.87375032]
[1766189987485,1.16624881,856.92,855.76,0.87375032]
[1766189988782,0.20320041,856.64,855.76,0.87375032]
[1766189991185,0.20320041,856.64,855.38,6.86742263]
[1766189991186,0.20320041,856.64,855.73,0.87375032]
[1766189991385,0.20320041,856.64,855.7,0.87375032]
[1766189991686,0.20320041,856.64,855.69,0.87375032]
[1766189995792,0.20320041,856.64,855.73,0.87375032]
[1766189995992,0.20320041,856.64,855.76,0.87375032]
[1766190000092,0.20320041,856.64,855.79,0.87375032]
[1766190000898,0.20320041,856.64,855.82,0.87375032]
[1766190002300,0.20320041,856.64,855.83,0.87375032]
[1766190006305,0.20320041,856.64,855.84,0.87375032]
[1766190009309,0.20320041,856.64,855.85,0.87375032]
[1766190011407,0.20320041,856.64,855.86,0.87375032]
[1766190013315,0.20320041,856.64,855.87,0.87375032]
[1766190014414,0.20320041,856.64,855.88,0.87375032]
[1766190015417,0.20320041,856.64,855.89,0.87375032]
[1766190016417,0.20320041,856.64,855.9,0.87375032]
[1766190017419,0.20320041,856.64,855.91,0.87375032]
[1766190018720,0.20320041,856.64,855.9,0.87375032]
[1766190022518,0.20320041,856.64,855.85,0.87375032]
[1766190024421,0.20320041,856.64,855.8,0.87375032]
[1766190026423,0.20320041,856.64,855.83,0.87375032]
[1766190028523,0.20320041,856.64,855.87,0.87375032]
[1766190033125,0.20320041,856.64,855.88,0.87375032]
[1766190052342,0.20320041,856.64,855.89,0.87375032]
[1766190055342,0.20320041,856.64,855.9,0.87375032]
[1766190055547,0.20320041,856.64,855.93,0.87375032]
[1766190058445,0.20320041,856.64,855.88,0.87375032]
[1766190064449,0.20320041,856.64,855.88,0.87557133]
[1766190078164,0.20320041,856.64,855.93,0.87557133]
[1766190080571,0.20320041,856.64,855.93,0.87549845]
[1766190081169,0.20320041,856.64,856.0,0.87549845]
[1766190082273,0.20320041,856.64,856.02,0.87549845]
[1766190083172,0.20320041,856.64,856.01,0.87549845]
[1766190087175,0.20320041,856.64,856.0,0.87549845]
[1766190087375,0.20320041,856.64,856.03,0.87549845]
[1766190087776,1.16624881,857.02,856.03,0.87549845]
[1766190087971,0.20314466,856.73,856.11,0.87549845]
[1766190088176,0.20314466,856.73,856.1,0.87549845]
[1766190089178,0.20314466,856.73,856.08,0.87549845]
[1766190090678,0.20314466,856.73,856.07,0.87549845]
[1766190090873,0.20314466,856.73,856.08,0.87549845]
[1766190091074,0.20314466,856.73,856.07,0.87549845]
[1766190092175,0.20314466,856.73,856.06,0.87549845]
[1766190093280,0.20314466,856.73,856.05,0.87549845]
[1766190095282,0.20314466,856.73,856.04,0.87549845]
[1766190097181,0.20314466,856.73,856.03,0.87549845]
[1766190099181,0.20314466,856.73,856.02,0.87549845]
[1766190099686,0.20314466,856.73,856.03,0.87549845]
[1766190100181,0.20314466,856.73,856.02,0.87549845]
[1766190103185,0.20314466,856.73,856.01,0.87549845]
[1766190104989,0.20314466,856.73,855.86,1.16633017]
[1766190105185,0.20314466,856.73,856.01,0.8720771]
[1766190105889,0.20314466,856.73,856.04,0.8720771]
[1766190107186,0.20314466,856.73,856.03,0.8720771]
[1766190109590,0.20314466,856.73,856.06,0.8720771]
[1766190110288,0.20314466,856.73,856.08,0.8720771]
[1766190111489,1.16624881,857.3,856.08,0.8720771]
[1766190111788,0.20311146,856.83,856.14,0.8720771]
[1766190111991,1.16624881,857.36,856.14,0.8720771]
[1766190112187,0.20310197,856.85,856.13,0.8720771]
[1766190112493,1.16624881,857.37,856.13,0.8720771]
[1766190113698,0.20310197,857.07,856.13,0.8720771]
[1766190114294,0.20310197,857.07,856.12,0.8720771]
[1766190114695,0.20310197,857.07,856.13,0.8720771]
[1766190114896,0.20310197,857.07,856.19,0.8720771]
[1766190115094,0.20310197,857.07,856.18,0.8720771]
[1766190115591,0.20310197,857.07,856.22,0.8720771]
[1766190116297,0.20310197,857.07,856.28,0.8720771]
[1766190116493,0.20310197,857.07,856.33,0.8720771]
[1766190117294,0.20310197,857.07,856.32,0.8720771]
[1766190117794,0.20310197,857.07,856.31,0.8720771]
[1766190118198,0.20310197,857.07,856.3,0.8720771]
[1766190118401,0.20310197,857.07,856.25,0.8720771]
[1766190119097,0.20310197,857.07,856.24,0.8720771]
[1766190121495,0.20310197,857.07,856.27,0.8720771]
[1766190122396,0.20310197,857.07,856.26,0.8720771]
[1766190123303,0.20310197,857.07,856.1,1.16633017]
[1766190123304,0.20310197,857.07,856.25,0.8720771]
[1766190124406,0.20310197,857.07,856.24,0.8720771]
[1766190124905,0.20310197,857.07,856.22,0.8720771]
[1766190125107,0.20310197,857.07,856.17,0.8720771]
[1766190128111,0.20310197,857.07,856.12,0.8720771]
[1766190130209,0.20310197,857.07,856.13,0.8720771]
[1766190130409,0.20310197,857.07,856.12,0.8720771]
[1766190131206,0.20310197,857.07,856.13,0.8720771]
[1766190133107,0.20310197,857.07,856.14,0.8720771]
[1766190135309,0.20310197,857.07,856.15,0.8720771]
[1766190136212,0.20310197,857.07,856.16,0.8720771]
[1766190138214,0.20310197,857.07,856.17,0.8720771]
[1766190139313,0.20310197,857.07,856.18,0.8720771]
[1766190140010,0.20310197,857.07,856.25,0.8720771]
[1766190140215,0.20310197,857.07,856.1,1.16633017]
[1766190140216,0.20310197,857.07,856.26,0.8720771]
[1766190143211,0.20310197,857.07,856.27,0.8720771]
[1766190146121,0.20310197,857.07,856.12,1.16633017]
[1766190146122,0.20310197,857.07,856.28,0.8720771]
[1766190148221,0.20310197,857.07,856.29,0.8720771]
[1766190148421,0.20310197,857.07,856.28,0.8720771]
[1766190148918,0.20310197,857.07,856.33,0.8720771]
[1766190149125,0.20310197,857.07,856.34,0.8720771]
[1766190149318,0.20310197,857.07,856.33,0.8720771]
[1766190151125,0.20310197,857.07,856.34,0.8720771]
[1766190151420,0.20310197,857.07,856.33,0.8720771]
[1766190152122,0.20310197,857.07,856.34,0.8720771]
[1766190152326,0.20310197,857.07,856.33,0.8720771]
[1766190153126,0.20310197,857.07,856.34,0.8720771]
[1766190155725,0.20303799,857.17,856.34,0.8720771]
[1766190157531,0.20303799,857.17,856.36,0.8720771]
[1766190158131,0.20303799,857.17,856.42,0.8720771]
[1766190159127,1.16624881,857.8,856.56,0.8720771]
[1766190159431,0.20301193,857.32,856.57,0.8720771]
[1766190159627,1.16624881,857.83,856.57,0.8720771]
[1766190159831,0.20299535,857.5,856.57,0.8720771]
[1766190160428,0.20299535,857.5,856.56,0.8720771]
[1766190160627,0.20299535,857.5,856.64,0.8720771]
[1766190161327,0.20299535,857.5,856.63,0.8720771]
[1766190162327,0.20299535,857.5,856.62,0.8720771]
[1766190163234,0.20299535,857.5,856.63,0.8720771]
[1766190163432,0.20299535,857.5,856.62,0.8720771]
[1766190164529,0.20299535,857.5,856.61,0.8720771]
[1766190165129,0.20299535,857.5,856.62,0.8720771]
[1766190165334,0.20299535,857.5,856.61,0.8720771]
[1766190166536,0.20299535,857.5,856.45,1.16633017]
[1766190166737,0.20299535,857.5,856.6,0.86823188]
[1766190167138,0.20299535,857.5,856.61,0.86823188]
[1766190167437,0.20299535,857.5,856.6,0.86823188]
[1766190168135,0.20299535,857.5,856.61,0.86823188]
[1766190168339,0.20299535,857.5,856.6,0.86823188]
[1766190169237,0.20299535,857.5,856.45,1.16633017]
[1766190169238,0.20299535,857.5,856.61,0.86823188]
[1766190169435,0.20299535,857.5,856.6,0.86823188]
[1766190173241,0.20299535,857.5,856.59,0.86823188]
[1766190174144,0.20299535,857.5,856.6,0.86823188]
[1766190174339,0.20299535,857.5,856.59,0.86823188]
[1766190175038,0.20299535,857.5,856.51,0.86823188]
[1766190175237,0.20299535,857.5,856.5,0.86823188]
[1766190176443,0.20299535,857.5,856.35,1.16633017]
[1766190176444,0.20299535,857.5,856.47,0.86823188]
[1766190188454,0.20299535,857.5,856.48,0.86823188]
[1766190191454,0.20299535,857.5,856.49,0.86823188]
[1766190193455,0.20299535,857.5,856.5,0.86823188]
[1766190195455,0.20299535,857.5,856.51,0.86823188]
[1766190197359,0.20299535,857.5,856.52,0.86823188]
[1766190199457,0.20299535,857.5,856.53,0.86823188]
[1766190200361,0.20299535,857.5,856.54,0.86823188]
[1766190201662,0.20299535,857.5,856.12,6.82203092]
[1766190201663,0.20299535,857.5,856.45,0.86823188]
[1766190202259,0.20299535,857.5,856.46,0.86823188]
[1766190204464,0.20299535,857.5,856.47,0.86823188]
[1766190206360,0.20299535,857.5,856.48,0.86823188]
[1766190208460,0.20299535,857.5,856.49,0.86823188]
[1766190210260,0.20299535,857.5,856.5,0.86823188]
[1766190213365,0.20299535,857.5,856.51,0.86823188]
[1766190215366,0.20299535,857.5,856.52,0.86823188]
[1766190217468,0.20299535,857.5,856.53,0.86823188]
[1766190220472,0.20299535,857.5,856.52,0.86823188]
[1766190221373,0.20299535,857.5,856.53,0.86823188]
[1766190226278,0.20299535,857.5,856.54,0.86823188]
[1766190229284,0.20299535,857.5,856.55,0.86823188]
[1766190231386,0.20299535,857.5,856.56,0.86823188]
[1766190233384,0.20299535,857.5,856.57,0.86823188]
[1766190241797,0.20299535,857.5,856.65,0.86823188]
[1766190241997,0.20299535,857.5,856.7,0.86823188]
[1766190244402,0.20299535,857.5,856.69,0.86823188]
[1766190245401,0.20299535,857.5,856.71,0.86823188]
[1766190246501,0.20299535,857.5,856.67,0.86823188]
[1766190257417,0.20299535,857.5,856.66,0.86823188]
[1766190275930,0.20299535,857.5,856.68,0.86823188]
[1766190277932,0.20299535,857.5,856.7,0.86823188]
[1766190279732,0.20299535,857.5,856.76,0.86823188]
[1766190280336,0.20299535,857.5,856.77,0.86823188]
[1766190280834,0.20299535,857.5,856.78,0.86823188]
[1766190281441,0.20299535,857.5,856.62,1.16633017]
[1766190281442,0.20299535,857.5,856.77,0.86823188]
[1766190283733,0.20299535,857.5,856.77,0.87082705]
[1766190285541,0.20299535,857.5,856.76,0.87082705]
[1766190295446,0.20299535,857.5,856.77,0.87082705]
[1766190298353,0.20299535,857.5,856.78,0.87082705]
[1766190302357,0.20299535,857.5,856.75,0.87082705]
[1766190306059,0.20299535,857.5,856.7,0.87082705]
[1766190310060,0.20299535,857.5,856.66,0.87082705]
[1766190310659,0.20299535,857.5,856.62,0.87082705]
[1766190310959,1.36924416,857.5,856.48,0.87082705]
[1766190311365,0.20299535,857.5,856.46,0.87082705]
[1766190312365,0.20299535,857.5,856.34,6.72482119]
[1766190312366,0.20299535,857.5,856.45,0.87082705]
[1766190313267,0.20299535,857.5,856.44,0.87082705]
[1766190315367,0.20299535,857.5,856.43,0.87082705]
[1766190316469,0.20299535,857.5,856.42,0.87082705]
[1766190317376,0.20299535,857.5,856.41,0.87082705]
[1766190317569,0.20299535,857.5,856.4,0.87082705]
[1766190319470,0.20299535,857.5,856.39,0.87082705]
[1766190321369,0.20299535,857.5,856.38,0.87082705]
[1766190323372,0.20299535,857.5,856.37,0.87082705]
[1766190325377,0.20299535,857.5,856.34,6.72482119]
[1766190325378,0.20299535,857.5,856.36,0.87082705]
[1766190326381,0.20299535,857.5,856.35,0.87082705]
[1766190329281,0.20299535,857.5,856.34,7.59564824]
[1766190331183,0.20299535,857.5,856.34,6.72482119]
[1766190354703,0.20299535,857.5,856.3,0.86994174]
[1766190354905,0.20299535,857.5,856.15,1.16633017]
[1766190354906,1.16624881,857.44,856.18,0.86994174]
[1766190356504,1.16624881,857.43,856.19,0.86994174]
[1766190357299,1.16624881,857.44,856.18,0.86994174]
[1766190357505,1.16624881,857.43,856.19,0.86994174]
[1766190358402,1.16624881,857.42,856.19,0.86994174]
[1766190359402,1.16624881,857.42,856.2,0.86994174]
[1766190360009,0.20308183,857.12,856.2,0.86994174]
[1766190361504,0.20308183,857.12,856.21,0.86994174]
[1766190362509,0.20308183,857.12,856.17,0.86994174]
[1766190362805,0.20308183,857.12,856.11,0.86994174]
[1766190363911,0.20308183,857.12,856.1,0.86994174]
[1766190364313,0.20308183,857.12,856.11,0.86994174]
[1766190368216,0.20308183,857.12,856.12,0.86994174]
[1766190370419,0.20308183,857.12,856.13,0.86994174]
[1766190371018,0.20308183,857.12,856.16,0.86994174]
[1766190371418,0.20308183,857.12,856.15,0.86994174]
[1766190375421,0.20308183,857.12,856.14,0.86994174]
[1766190382721,0.20308183,857.12,856.19,0.86994174]
[1766190383026,0.20308183,857.12,856.26,0.86994174]
[1766190384429,0.20308183,857.12,856.11,1.16633017]
[1766190384622,0.20308183,857.12,856.26,0.87227426]
[1766190385327,0.20308183,857.12,856.27,0.87227426]
[1766190390531,0.20308183,857.12,856.28,0.87227426]
[1766190392532,0.20308183,857.12,856.34,0.87227426]
[1766190395035,0.20308183,857.12,856.18,1.16633017]
[1766190395036,0.20308183,857.12,856.37,0.87227426]
[1766190395229,0.20308183,857.12,856.4,0.87227426]
[1766190395629,0.20308183,857.12,856.09,1.74949525]
[1766190395630,0.20308183,857.12,856.47,0.87227426]
[1766190395936,1.16624881,857.6,856.47,0.87227426]
[1766190396137,0.20302436,857.22,856.47,0.87227426]
[1766190396432,1.16624881,857.73,856.57,0.87227426]
[1766190396633,0.20301903,857.26,856.57,0.87227426]
[1766190396833,1.16624881,857.73,856.57,0.87227426]
[1766190397440,1.16624881,857.74,856.56,0.87227426]
[1766190398138,0.20300601,857.45,856.56,0.87227426]
[1766190398438,0.20300601,857.45,856.55,0.87227426]
[1766190399339,0.20300601,857.45,856.54,0.87227426]
[1766190400337,0.20300601,857.45,856.53,0.87227426]
[1766190401340,0.20300601,857.45,856.52,0.87227426]
[1766190402342,0.20300601,857.45,856.51,0.87227426]
[1766190404344,0.20300601,857.45,856.5,0.87227426]
[1766190405444,0.20300601,857.45,856.49,0.87227426]
[1766190405946,0.20300601,857.45,856.5,0.87227426]
[1766190406240,0.20300601,857.45,856.49,0.87227426]
[1766190407346,0.20300601,857.45,856.48,0.87227426]
[1766190409249,0.20300601,857.45,856.47,0.87227426]
[1766190411347,0.20300601,857.45,856.46,0.87227426]
[1766190413350,0.20300601,857.45,856.45,0.87227426]
[1766190416352,0.20300601,857.45,856.44,0.87227426]
[1766190419061,0.20300601,857.45,856.38,0.87227426]
[1766190419361,0.20300601,857.45,856.33,0.87227426]
[1766190419957,0.20300601,857.45,856.28,0.87227426]
[1766190421362,0.20300601,857.45,856.29,0.87227426]
[1766190421564,0.20300601,857.45,856.28,0.87227426]
[1766190421765,0.20300601,857.45,856.31,0.87227426]
[1766190421965,0.20300601,857.45,856.34,0.87227426]
[1766190423265,0.20300601,857.45,856.22,6.36799299]
[1766190423266,0.20300601,857.45,856.4,0.87227426]
[1766190425463,0.20300601,857.45,856.41,0.87227426]
[1766190428564,0.20300601,857.45,856.42,0.87227426]
[1766190430365,0.20300601,857.45,856.43,0.87227426]
[1766190430864,0.20300601,857.45,856.43,0.86997442]
[1766190433269,0.20300601,857.45,856.28,1.16633017]
[1766190433270,0.20300601,857.45,856.44,0.86997442]
[1766190434267,0.20300601,857.45,856.45,0.86997442]
[1766190436478,0.20300601,857.45,856.46,0.86997442]
[1766190437476,0.20300601,857.45,856.47,0.86997442]
[1766190439378,0.20300601,857.45,856.48,0.86997442]
[1766190440379,0.20300601,857.45,856.49,0.86997442]
[1766190441280,0.20300601,857.45,856.5,0.86997442]
[1766190442379,0.20300601,857.45,856.52,0.86997442]
[1766190443176,0.20300601,857.45,856.55,0.86997442]
[1766190444481,0.20300601,857.45,856.56,0.86997442]
[1766190445383,0.20300601,857.45,856.57,0.86997442]
[1766190446583,0.20300601,857.45,856.58,0.86997442]
[1766190447084,0.20300601,857.45,856.66,0.86997442]
[1766190447381,0.20300601,857.45,856.67,0.86997442]
[1766190449283,0.20300601,857.45,856.68,0.86997442]
[1766190450386,0.20300601,857.45,856.69,0.86997442]
[1766190451389,0.20300601,857.45,856.7,0.86997442]
[1766190452285,0.20300601,857.45,856.71,0.86997442]
[1766190453285,0.20300601,857.45,856.72,0.86997442]
[1766190454489,0.20300601,857.45,856.73,0.86997442]
[1766190462390,0.20300601,857.45,856.77,0.86997442]
[1766190463685,0.20300601,857.45,856.76,0.86997442]
[1766190467290,0.20300601,857.45,856.75,0.86997442]
[1766190472300,0.20300601,857.45,856.74,0.86997442]
[1766190481209,0.20300601,857.45,856.75,0.86997442]
[1766190483911,0.20300601,857.45,856.73,0.86997442]
[1766190486916,0.20300601,857.45,856.7,0.86997442]
[1766190488117,0.20300601,857.45,856.75,0.86997442]
[1766190489418,0.20300601,857.45,856.76,0.86997442]
[1766190491315,0.20300601,857.45,856.8,0.86997442]
[1766190491518,0.20300601,857.45,856.82,0.86997442]
[1766190491818,1.16624881,857.86,856.82,0.86997442]
[1766190492216,0.20295036,857.55,856.82,0.86997442]
[1766190492413,0.20295036,857.55,856.88,0.86997442]
[1766190493218,0.20295036,857.55,856.87,0.86997442]
[1766190493511,0.20295036,857.55,856.72,1.16633017]
[1766190493512,0.20295036,857.55,856.88,0.86997442]
[1766190494117,0.20295036,857.55,856.87,0.86997442]
[1766190502423,0.20295036,857.55,856.88,0.86997442]
[1766190503119,0.20295036,857.55,856.87,0.86997442]
[1766190503420,0.20295036,857.55,856.88,0.86997442]
[1766190504325,0.20295036,857.55,856.87,0.86997442]
[1766190504525,0.20295036,857.55,856.88,0.86997442]
[1766190512232,0.20295036,857.55,856.87,0.86997442]
[1766190512431,0.20295036,857.55,856.88,0.86997442]
[1766190513228,0.20295036,857.55,856.87,0.86997442]
[1766190516433,0.20295036,857.55,856.88,0.86997442]
[1766190517133,0.20295036,857.55,856.87,0.86997442]
[1766190517337,0.20295036,857.55,856.88,0.86997442]
[1766190534541,0.20295036,857.55,856.89,0.86997442]
[1766190541251,0.20295036,857.55,856.9,0.86997442]
[1766190542050,0.20295036,857.55,856.97,0.86997442]
[1766190545353,0.20295036,857.55,856.98,0.86997442]
[1766190546655,0.20295036,857.55,857.04,0.86997442]
[1766190546852,1.16624881,858.02,857.04,0.86997442]
[1766190547050,0.20291486,857.66,857.04,0.86997442]
[1766190547251,1.16624881,858.02,857.04,0.86997442]
[1766190547457,0.20291427,857.66,857.04,0.86997442]
[1766190547655,1.16624881,858.02,857.04,0.86997442]
[1766190548956,0.20291486,857.78,857.04,0.86997442]
[1766190553162,0.20291486,857.78,857.03,0.86997442]
[1766190557363,0.20291486,857.78,857.13,0.86997442]
[1766190558166,0.20291486,857.78,857.12,0.86997442]
[1766190559161,0.20291486,857.78,856.74,6.30125191]
[1766190559162,0.20291486,857.78,857.11,0.86997442]
[1766190561262,0.20291486,857.78,857.1,0.86997442]
[1766190562163,0.20291486,857.78,857.09,0.86997442]
[1766190564164,0.20291486,857.78,857.08,0.86997442]
[1766190567372,0.20291486,857.78,857.07,0.86997442]
[1766190570169,0.20291486,857.78,857.06,0.86997442]
[1766190573575,0.20291486,857.78,857.04,0.86997442]
[1766190585381,0.20291486,857.78,857.02,0.86997442]
[1766190586178,0.20291486,857.78,857.03,0.86997442]
[1766190586376,0.20291486,857.78,856.99,0.86997442]
[1766190590184,0.20291486,857.78,857.0,0.86997442]
[1766190592180,0.20291486,857.78,857.01,0.86997442]
[1766190595290,0.20291486,857.78,857.02,0.86997442]
[1766190597291,0.20291486,857.78,857.03,0.86997442]
[1766190599392,0.20291486,857.78,857.04,0.86997442]
[1766190599893,0.20291486,857.78,856.96,0.86997442]
[1766190600092,0.20291486,857.78,856.93,0.86997442]
[1766190600293,0.20291486,857.78,856.9,0.86997442]
[1766190601089,0.20291486,857.78,856.91,0.86997442]
[1766190601389,0.20291486,857.78,856.9,0.86997442]
[1766190601889,0.20291486,857.78,856.85,0.86997442]
[1766190602294,0.20291486,857.78,856.87,0.86997442]
[1766190603390,0.20291486,857.78,856.86,0.86997442]
[1766190606193,0.20291486,857.78,856.85,0.86997442]
[1766190608298,0.20291486,857.78,856.84,0.86997442]
[1766190611095,0.20291486,857.78,856.83,0.86997442]
[1766190613398,0.20291486,857.78,856.82,0.86997442]
[1766190616205,0.20291486,857.78,856.81,0.86997442]
[1766190620312,0.20291486,857.78,856.8,0.86997442]
[1766190625717,0.20291486,857.78,856.81,0.86997442]
[1766190629720,0.20291486,857.78,856.74,6.30125191]
[1766190629921,1.16624881,857.76,856.74,6.30125191]
[1766190630121,1.16624881,857.76,856.6,0.86997442]
[1766190630321,1.16624881,857.77,856.59,0.86997442]
[1766190631316,1.36916367,857.78,856.58,0.86997442]
[1766190632322,0.20291486,857.78,856.57,0.86997442]
[1766190633121,0.20291486,857.78,856.42,1.16633017]
[1766190633122,1.36916367,857.78,856.58,0.86997442]
[1766190633322,0.20291486,857.78,856.57,0.86997442]
[1766190634322,0.20291486,857.78,856.56,0.86997442]
[1766190636422,0.20291486,857.78,856.55,0.86997442]
[1766190637121,0.20291486,857.78,856.56,0.86997442]
[1766190637319,0.20291486,857.78,856.55,0.86997442]
[1766190642421,1.16624881,857.75,856.48,0.86997442]
[1766190645123,1.16624881,857.74,856.48,0.86997442]
[1766190645321,0.20291486,857.78,856.48,0.86997442]
[1766190645322,1.16624881,857.75,856.48,0.86997442]
[1766190646227,1.16624881,857.74,856.49,0.86997442]
[1766190646427,1.16624881,857.74,856.48,0.86997442]
[1766190648125,1.16624881,857.74,856.49,0.86997442]
[1766190652228,0.20291486,857.78,856.55,0.86997442]
[1766190654132,0.20291486,857.78,856.56,0.86997442]
[1766190655233,1.36916367,857.78,856.56,0.86997442]
[1766190656233,1.36916367,857.78,856.57,0.86997442]
[1766190657233,1.16624881,857.77,856.57,0.86997442]
[1766190657734,1.16624881,857.7,856.49,0.86997442]
[1766190657936,1.16624881,857.63,856.43,0.86997442]
[1766190658135,1.16624881,857.62,856.43,0.86997442]
[1766190658337,1.16624881,857.63,856.42,0.86997442]
[1766190658632,1.16624881,857.62,856.42,0.86997442]
[1766190659237,1.16624881,857.61,856.43,0.86997442]
[1766190659435,1.16624881,857.62,856.42,0.86997442]
[1766190660337,1.16624881,857.49,856.29,0.86997442]
[1766190661638,1.16624881,857.5,856.28,0.86997442]
[1766190662334,1.16624881,857.55,856.31,0.86997442]
[1766190663337,1.16624881,857.56,856.3,0.86997442]
[1766190664339,1.16624881,857.57,856.29,0.86997442]
[1766190666341,1.16624881,857.58,856.28,0.86997442]
[1766190668244,1.16624881,857.59,856.27,0.86997442]
[1766190671242,1.16624881,857.6,856.27,0.86997442]
[1766190671446,1.16624881,857.59,856.27,0.86997442]
[1766190672247,1.74937322,857.75,856.27,0.86997442]
[1766190672248,1.16624881,857.6,856.27,0.86997442]
[1766190673349,1.16624881,857.6,856.26,0.86997442]
[1766190674150,1.16624881,857.6,856.27,0.86997442]
[1766190674349,1.16624881,857.6,856.26,0.86997442]
[1766190676350,1.16624881,857.6,856.27,0.86997442]
[1766190678147,1.16624881,857.6,856.26,0.86997442]
[1766190678451,1.16624881,857.59,856.27,0.86997442]
[1766190681348,1.16624881,857.58,856.28,0.86997442]
[1766190682248,1.16624881,857.51,856.21,0.86997442]
[1766190684253,1.16624881,857.5,856.22,0.86997442]
[1766190685353,1.74937322,857.65,856.23,0.86997442]
[1766190685354,1.16624881,857.49,856.23,0.86997442]
[1766190685853,1.16624881,857.49,856.22,0.86997442]
[1766190686054,1.16624881,857.55,856.28,0.86997442]
[1766190686253,1.16624881,857.54,856.29,0.86997442]
[1766190686651,1.16624881,857.61,856.36,0.86997442]
[1766190687356,1.16624881,857.6,856.37,0.86997442]
[1766190688258,1.16624881,857.68,856.47,0.86997442]
[1766190688455,1.16624881,857.68,856.47,0.87227868]
[1766190688657,1.16624881,857.7,856.49,0.87227868]
[1766190689058,1.16624881,857.73,856.52,0.87227868]
[1766190689460,1.16624881,857.72,856.53,0.87227868]
[1766190691262,1.16624881,857.73,856.53,0.87227868]
[1766190692363,0.20291486,857.78,856.6,0.87227868]
[1766190692764,0.20291486,857.78,856.64,0.87227868]
[1766190695266,0.20291486,857.78,856.63,0.87227868]
[1766190699371,0.20291486,857.78,856.62,0.87227868]
[1766190702472,0.20291486,857.78,856.63,0.87227868]
[1766190704178,0.20291486,857.78,856.62,0.87227868]
[1766190709279,0.20291486,857.78,856.61,0.87227868]
[1766190712283,0.20291486,857.78,856.59,0.87227868]
[1766190714187,0.20291486,857.78,856.58,0.87227868]
[1766190720493,0.20291486,857.78,856.42,1.16633017]
[1766190720693,0.20291486,857.78,856.58,0.87121771]
[1766190721194,0.20291486,857.78,856.54,0.87121771]
[1766190721695,0.20291486,857.78,856.49,0.87121771]
[1766190721896,1.16624881,857.73,856.43,0.87121771]
[1766190722294,1.16624881,857.75,856.46,0.87121771]
[1766190723895,1.16624881,857.64,856.36,0.87121771]
[1766190724396,1.16624881,857.62,856.34,0.87121771]
[1766190725896,1.16624881,857.62,856.19,1.16633017]
[1766190726093,1.16624881,857.62,856.34,0.87172904]
[1766190731201,1.16624881,857.62,856.35,0.87172904]
[1766190732401,1.16624881,857.53,856.27,0.87172904]
[1766190740305,1.16624881,857.52,856.27,0.87172904]
[1766190741302,1.16624881,857.52,856.28,0.87172904]
[1766190742107,1.16624881,857.38,856.13,0.87172904]
[1766190742308,1.16624881,857.46,856.2,0.87172904]
[1766190743309,1.16624881,857.37,856.09,0.87172904]
[1766190743508,1.16624881,857.28,856.02,6.37942403]
[1766190743709,1.16624881,857.23,856.02,6.37942403]
[1766190744212,1.16624881,857.25,856.02,6.37942403]
[1766190744512,1.16624881,857.22,856.02,6.37942403]
[1766190745309,1.16624881,857.25,856.02,6.37942403]